Cogmind - Beta 9.6 @@@ ROGUE MODE // 2020.05.20 @ 20:51:22 Player: Overmind Result: Self-destructed Performance ------------- Evolutions (1) 500 Regions Visited (3) 600 Robots Destroyed (2) 10 Value Destroyed (78) 78 Prototype IDs (2) 40 Alien Tech Used (0) 0 Bonus (0) 0 TOTAL SCORE: 1228 Bonus ------- None Cogmind --------- Core Integrity 280/400 Matter 112/300 Energy 100/100 System Corruption 0% Temperature Cool (0) Movement Core (50) Location -9/Mines Parts ------- > --- POWER (1) -------- (None) > --- PROPULSION (2) --- (None) > --- UTILITY (4) ------ Improved Signal Interpreter > --- WEAPON (2) ------- (None) > --- INVENTORY (4) ---- Light Treads Light Treads Peak State ------------ > --- POWER ------------ Light Ion Engine > --- PROPULSION ------- Wheel Compact Wheel > --- UTILITY ---------- Improved Signal Interpreter Shield Generator > --- WEAPON ----------- EM Pulse Gun Medium Laser > --- INVENTORY -------- Light Treads Light Treads [Rating: 9] Favorites ----------- Power Light Ion Engine Engine Light Ion Engine Propulsion Compact Wheel Wheel Compact Wheel Utility Improved Signal Interpreter Device Shield Generator Processor Improved Signal Interpreter Weapon Medium Laser Energy Gun Medium Laser Launcher EMP Blaster Build | -11 -10 -9 -9 ------- Run | Scr Mat Mat Min Slots Evolved 2 | . . 2 . Power . | . . . . Propulsion . | . . . . Utility 2 | . . 2 . Weapon . | . . . . Parts Attached 8 | 5 3 . . Power 1 | 1 . . . Engine 1 | 1 . . . Core . | . . . . Reactor . | . . . . Propulsion 2 | 2 . . . Treads . | . . . . Leg . | . . . . Wheel 2 | 2 . . . Hover . | . . . . Flight . | . . . . Utility 2 | . 2 . . Device 1 | . 1 . . Storage . | . . . . Processor 1 | . 1 . . Hackware . | . . . . Protection . | . . . . Artifact . | . . . . Weapon 3 | 2 1 . . Energy Gun 2 | 2 . . . Energy Cannon . | . . . . Ballistic Gun . | . . . . Ballistic Cannon . | . . . . Launcher 1 | . 1 . . Special Weapon . | . . . . Impact Weapon . | . . . . Slashing Weapon . | . . . . Piercing Weapon . | . . . . Special Melee Weapon . | . . . . Unidentified Prototypes . | . . . . Parts Lost 7 | . 7 . . Power 1 | . 1 . . Propulsion 2 | . 2 . . Utility 1 | . 1 . . Weapon 3 | . 3 . . Highest Loss Streak 5 | . 5 . . Average Slot Usage (%) 51 | . 71 11 . Engine 6 | . 9 . . Wheel 14 | . 22 . . Device 3 | . 5 . . Processor 10 | . 10 11 . Energy Gun 12 | . 18 . . Launcher 2 | . 4 . . Naked Turns . | . . . . Heaviest Build 9 | 7 9 . . Greatest Support 26 | 26 26 3 . Greatest Overweight (x) . | . . . . Average Overweight (x) . | . . . . Largest Inventory Capacity 4 | 4 4 4 . Average Capacity 4 | 4 4 4 . Most Carried 4 | 4 3 2 . Average Carried 2 | 2 2 2 . Final Capacity 4 | 4 4 4 4 Final Carried 2 | 2 2 2 2 Class Distribution -------------------- 100% | Mutant Dominant Class ---------------- Mutant | -10/Materials Mutant | -9/Materials Mutant | -9/Mines Resources | -11 -10 -9 -9 ----------- Run | Scr Mat Mat Min Matter Collected 69 | 63 6 . . Remotely . | . . . . Salvage Created 70 | . 70 . . Parts 4 | . 4 . . Haulers Intercepted . | . . . . Recyclers Shooed . | . . . . Parts Field Recycled . | . . . . Retrieved Matter . | . . . . Parts Self-Destructed . | . . . . Prevented . | . . . . Kills | -11 -10 -9 -9 ------- Run | Scr Mat Mat Min Combat Hostiles Destroyed 2 | . 2 . . AOE 2 | . 2 . . Classes Destroyed 1 | . 1 . . Grunt 2 | . 2 . . Best Kill Streak 2 | . 2 . . Combat Bots Only 2 | . 2 . . Max Kills in Single Turn 1 | . 1 . . Gunslinging . | . . . . Exploded 1 | . 1 . . Melee . | . . . . Uniques/NPCs Destroyed . | . . . . Combat | -11 -10 -9 -9 -------- Run | Scr Mat Mat Min Damage Taken 560 | . 440 120 . Core 239 | . 119 120 . Absorbed by Shields 27 | . 27 . . Core Remaining (%) 76 | 100 52 . . Volleys Fired 13 | . 13 . . Largest 2 | . 2 . . Hottest 90 | . 90 . . Shots Fired 23 | . 23 . . Gun 20 | . 20 . . Cannon . | . . . . Launcher 3 | . 3 . . Special . | . . . . Kinetic . | . . . . Thermal 10 | . 10 . . Explosive . | . . . . Electromagnetic 13 | . 13 . . Robot Hit Streak 8 | . 8 . . Robot Miss Streak 4 | . 4 . . Penetration Max . | . . . . Secondary Targets . | . . . . Shots Hit Robots 13 | . 13 . . Core Hits 4 | . 4 . . Critical Hits . | . . . . Critical Kills . | . . . . Critical Parts Destroyed . | . . . . Melee Attacks . | . . . . Impact . | . . . . Slashing . | . . . . Piercing . | . . . . Sneak Attacks . | . . . . Combat Hostiles . | . . . . Follow-up Attacks . | . . . . Damage Inflicted 618 | . 618 . . Guns 144 | . 144 . . Cannons . | . . . . Explosions 474 | . 474 . . Melee . | . . . . Ramming . | . . . . Kinetic . | . . . . Thermal 406 | . 406 . . Explosive . | . . . . Electromagnetic 212 | . 212 . . Impact . | . . . . Slashing . | . . . . Piercing . | . . . . Highest Corruption 4 | . 4 . . Average Corruption 3 | . 3 . . Corruption Purged . | . . . . Overload Shots . | . . . . Overflow Damage 114 | . 114 . . Projectiles . | . . . . Explosions 114 | . 114 . . Melee . | . . . . Knockbacks . | . . . . Impact . | . . . . Kinetic . | . . . . Secondary . | . . . . Self-Inflicted Damage 143 | . 143 . . Shots 2 | . 2 . . Rammed . | . . . . Targets Rammed . | . . . . Kicked . | . . . . Crushed . | . . . . Highest Temperature 172 | . 172 . . Average Temperature 71 | . 71 . . Received Heat Transfer 180 | . 162 18 . Siege Activations . | . . . . Robots Corrupted . | . . . . Combat Hostiles . | . . . . Parts Fried . | . . . . Impact Corruptions . | . . . . Robots Melted . | . . . . Combat Hostiles . | . . . . Parts Melted 1 | . 1 . . Heat Transferred 498 | . 498 . . Parts Sabotaged . | . . . . Parts Stolen . | . . . . Parts Stripped . | . . . . Power Chain Reactions 1 | . 1 . . Missiles Intercepted . | . . . . Alert | -11 -10 -9 -9 ------- Run | Scr Mat Mat Min Peak Influence 45 | . 45 40 . Average Influence 17 | . 15 30 . Maximum Alert Level . | . . . . Low Security (%) 100 | 100 100 100 . Level 1 . | . . . . Level 2 . | . . . . Level 3 . | . . . . Level 4 . | . . . . Level 5 . | . . . . High Security . | . . . . Max Security . | . . . . Squads Dispatched 2 | . 2 . . Investigation 1 | . 1 . . Extermination . | . . . . Reinforcement 1 | . 1 . . Assault . | . . . . Garrison . | . . . . Intercept . | . . . . Construction Impeded . | . . . . Haulers Reinforced . | . . . . Stealth | -11 -10 -9 -9 --------- Run | Scr Mat Mat Min Distress Signals . | . . . . Communications Jammed . | . . . . Distress Signals . | . . . . Times Spotted 20 | . 12 8 . Peak Tracking Total 6 | . 6 6 . Tactical Retreats 4 | . 3 1 . Traps | -11 -10 -9 -9 ------- Run | Scr Mat Mat Min Traps Triggered 4 | . 4 . . Indirectly . | . . . . Trap Hack Attempts . | . . . . Triggered . | . . . . Disarmed . | . . . . Reprogrammed . | . . . . Reused . | . . . . Traps Extracted . | . . . . Installed . | . . . . Triggered . | . . . . Machines | -11 -10 -9 -9 ---------- Run | Scr Mat Mat Min Machines Disabled 2 | . 2 . . Max in Single Turn 2 | . 2 . . Machines Sabotaged . | . . . . Garrisons Compromised . | . . . . Overloaded Fab Kills . | . . . . Fab Network Shutdowns . | . . . . Hacking | -11 -10 -9 -9 --------- Run | Scr Mat Mat Min Machines Accessed 1 | . 1 . . Terminals 1 | . 1 . . Fabricators . | . . . . Repair Stations . | . . . . Recycling Units . | . . . . Scanalyzers . | . . . . Garrison Access . | . . . . Total Hacks 1 | . 1 . . Successful 1 | . 1 . . Failed . | . . . . Catastrophic . | . . . . Database Lockouts . | . . . . Manual . | . . . . Terminals 1 | . 1 . . Fabricators . | . . . . Repair Stations . | . . . . Recycling Units . | . . . . Scanalyzers . | . . . . Garrison Access . | . . . . Terminal Hacks 1 | . 1 . . Prototype ID Bank 1 | . 1 . . Fabricator Hacks . | . . . . Repair Station Hacks . | . . . . Recycling Unit Hacks . | . . . . Scanalyzer . | . . . . Garrison Access Hacks . | . . . . Unauthorized Hacks . | . . . . Terminals . | . . . . Fabricators . | . . . . Repair Stations . | . . . . Recycling Units . | . . . . Scanalyzers . | . . . . Garrison Access . | . . . . Data Cores Recovered . | . . . . Used . | . . . . Hacking Detections 1 | . 1 . . Full Trace Events . | . . . . Feedback Events . | . . . . Feedback Blocked . | . . . . Robot Schematics Acquired . | . . . . Robots Built . | . . . . Matter . | . . . . Time . | . . . . Total Robot Build Rating . | . . . . Part Schematics Acquired . | . . . . Parts Built . | . . . . Matter . | . . . . Time . | . . . . Total Part Build Rating . | . . . . Parts Repaired . | . . . . Time . | . . . . Parts Recycled . | . . . . Recycled Matter . | . . . . Retrieved Matter . | . . . . Retrieved Components . | . . . . Parts Scanalyzed . | . . . . Part Schematics Acquired . | . . . . Parts Damaged . | . . . . Bothacking | -11 -10 -9 -9 ------------ Run | Scr Mat Mat Min Used RIF Installer . | . . . . Robots Hacked . | . . . . Non-combat . | . . . . Combat . | . . . . Robot Hacks Applied . | . . . . Relay Couplers Released . | . . . . Robots Rewired . | . . . . Allies Hacked . | . . . . Hacks Repelled . | . . . . Allies | -11 -10 -9 -9 -------- Run | Scr Mat Mat Min Total Allies . | . . . . Largest Group . | . . . . Highest-Rated Group . | . . . . Highest-Rated Ally . | . . . . Total Orders . | . . . . Ally Attacks . | . . . . Total Damage . | . . . . Kills . | . . . . Allies Corrupted . | . . . . Allies Melted . | . . . . Intel | -11 -10 -9 -9 ------- Run | Scr Mat Mat Min Robot Analysis Total . | . . . . Derelict Logs Recovered . | . . . . Drone Launches . | . . . . Drone Recoveries . | . . . . Exploration | -11 -10 -9 -9 ------------- Run | Scr Mat Mat Min Turns Passed 342 | 40 207 95 . Spaces Moved 399 | 37 172 190 . Core 233 | 13 30 190 . Treads . | . . . . Legs . | . . . . Wheels 166 | 24 142 . . Hover . | . . . . Flight . | . . . . Fastest Speed 50 | 50 50 50 . Average Speed 67 | 75 85 50 . Slowest Speed 100 | 90 100 50 . Overloaded Moves . | . . . . Propulsion Burnouts . | . . . . Robots Hopped . | . . . . Cave-ins Triggered . | . . . . Exploration Rate (%) 17 | 3 35 27 4 Regions Visited 3 Branch Regions 1 Pre-discovered Areas . | . . . . Known Exits Taken 2 | . 1 1 . Unknown Exits Taken 1 | 1 . . . Scrap Searched . | . . . . Spaces Dug . | . . . . Terrain Destroyed 32 | . 32 . . Melee . | . . . . Projectile . | . . . . AOE 32 | . 32 . . Actions | -11 -10 -9 -9 --------- Run | Scr Mat Mat Min Total 445 | 48 208 189 . Wait 18 | . 18 . . Move 396 | 36 171 189 . Hop . | . . . . Pick Up 10 | 7 3 . . Fast Attach . | . . . . Attach 8 | 5 3 . . Detach . | . . . . Swap . | . . . . Drop . | . . . . Fire 13 | . 13 . . Melee . | . . . . Ram . | . . . . Kick . | . . . . Crush . | . . . . Escape Stasis . | . . . . Rewire . | . . . . Trap . | . . . . Miscellaneous . | . . . . Route ------- -11/Scrapyard -10/Materials (discovered 3 exits: *Mat x2 / *Min) -9/Materials -9/Mines History --------- Turn | Location | Event 7 | -11/Scrapyard | Discovered new exit (range 15) 41 | -11/Scrapyard | Entered Materials 65 | -10/Materials | Discovered new exit (range 16) 111 | -10/Materials | Discovered new exit (range 16) 181 | -10/Materials | Identified exit to Mines 207 | -10/Materials | Lost 5 parts (1p1n1u2w) 241 | -10/Materials | Discovered new exit (range 13) 246 | -10/Materials | Identified exit to Materials 248 | -10/Materials | Entered another Materials area 248 | -9/Materials | Evolved 2 slots: Utility x2 308 | -9/Materials | Build established: Mutant 337 | -9/Materials | Discovered new exit (range 13) 343 | -9/Materials | Identified exit to Mines 343 | -9/Materials | Entered Mines 343 | -9/Mines | Self-destructed Last Messages --------------- 00240_ Triggered Shock Trap. 00240_ The floor emits a surge of raw power. 00240_ System corrupted (+1). 00241_ EXIT=FOUND 00241_ Triggered Shock Trap. 00241_ The floor emits a surge of raw power. 00241_ System corrupted (+1). 00246_ EXIT=IDENTIFIED: MATERIALS PARAMETERS=UTILITY_2 LOCATION=MATERIALS GOAL=ESCAPE 00280_ K-01 Serf collects debris. 00282_ Connecting with Terminal... 00284_ K-01 Serf collects debris. 00337_ EXIT=FOUND 00342_ K-01 Serf collects debris. 00343_ EXIT=IDENTIFIED: MINES LOCATION=MINES GOAL=ESCAPE Something is scanning the area. Map ----- +----------------------------------------------------+ | ??????????????????????????????????????????????? | | ??????????????????????????????????????????????? | | ??????????????????????????????????????????????? | | ??????????????????????????????????????????????? | | ??????????????????????????????????????????????? | | ??????????????????????????????????????????????? | | ??????????????????????????????????????????????? | | ??????????????????????????????????????????????? | | ??????????????????????????????????????????????? | | ??????????????????????????????????????????????? | | ??????????????????????????????????????????????? | | ??????????????????????????????????????????????? | | ??????????????????????????????????????????????? | | ??????????????????????????????????????????????? | | ??????????????????????????????????????????????? | | ??????????????????????????????????????????????? | | ?????????????#????????????????????????????????? | | ?????????????# ??????????????????????????????? | | ???????????? ?????????????????????????????? | | ????????????? ###?????????????????????????? | | ??????????????? #????????????????????????? | | ????????????????? #???????????????????????? | | ??????????????????# ####???????????????????? | | ???????????????????# ##??????????????????? | | ????????????????????# ##?????????????????? | | ????????????????????# @ #?????????????????? | | ????????????????????# #????????????????? | | ???????????????????# #???????????????? | | ??????????????????# ### ??????????????? | | ?????????????????# ???## ????????????? | | ?????????????????###??????## #####???????????? | | ????????????????????????????###???????????????? | | ??????????????????????????????????????????????? | | | | | | | | | | | | | | | | | | | | | | | | | | | | | | | | | | | +----------------------------------------------------+ Best States ------------- Heat Dissipation 28 Energy Generation 10 Energy Capacity 125 Matter Stores 114 Matter Capacity 300 Sight Range 16 Terrain Scan Density 10 Evasion (%) 50 Item Schematics ----------------- None Robot Schematics ------------------ None Fabricated ------------ Nothing Alien Tech Used ----------------- None Achievements -------------- None Challenges ------------ None Game ------ Seed FusionBackupClaws Manual? 0 Play Time 00:06:33 Cumulative 9.8 hours Start 2020.05.20 @ 20:44:54 End 2020.05.20 @ 20:51:22 Sessions 1 Manual Loads 0 Difficulty Rogue Special Mode None Game No. 20 Rogue 4 Adventurer 16 Explorer 0 Win Type - Total 0 Types 0/0/0/0/0/0/0 Lore% 7 Gallery% 17 Achievement% 14 Wizard Run 0 Options --------- ASCII 0 Keyboard 1 Movement Arrows Keybinds 0 Fullscreen 2 Font 18/CogNarrow Map View 76x50 Tactical HUD 1 Map Filters NONE Filters NONE Steam 0 RUN: 8c4ae198-b7ca-4e9b-8733-f66d89f18fb6